fUST/lending_fUST_20250107
["ID","MTS","AMOUNT","RATE_DAILY","PERIOD"]
[347907664,1736191848052,-717.52,0.0002,3]
[347907665,1736191848062,-500.0,0.0002,3]
[347907666,1736191848071,-500.0,0.0002,3]
[347907667,1736191848080,-500.0,0.0002,3]
[347907668,1736191848090,-2898.77,0.0002,3]
[347907669,1736191848099,-500.0,0.0002,3]
[347907670,1736191848108,-500.0,0.0002,3]
[347907671,1736191848118,-500.0,0.0002,3]
[347907672,1736191848127,-500.0,0.0002,3]
[347907673,1736191848137,-500.0,0.0002,3]
[347907674,1736191848147,-500.0,0.0002,3]
[347907675,1736191848156,-500.0,0.0002,3]
[347907676,1736191848166,-500.0,0.0002,3]
[347907677,1736191848175,-500.0,0.0002,3]
[347907678,1736191848185,-500.0,0.0002,3]
[347907679,1736191848194,-22868.95,0.0002,3]
[347907680,1736191848203,-500.0,0.0002,3]
[347907681,1736191848213,-500.0,0.0002,3]
[347907682,1736191848223,-500.0,0.0002,3]
[347907683,1736191848232,-688.21,0.0002,3]
[347907684,1736191848242,-3063.9,0.0002,3]
[347907685,1736191848252,-500.0,0.0002,3]
[347907686,1736191848261,-500.0,0.0002,3]
[347907687,1736191848271,-500.0,0.0002,3]
[347907688,1736191848280,-2608.00405353,0.0002,3]
[347907689,1736191848305,-467.71594647,0.0002,3]
[347907690,1736191848315,-2467.86,0.0002,3]
[347907691,1736191848325,-570.40488127,0.0002,3]
[347907692,1736191848335,-500.0,0.0002,3]
[347907693,1736191848344,-500.0,0.0002,3]
[347907694,1736191848353,-500.0,0.0002,3]
[347907695,1736191848363,-981.07,0.0002,3]
[347907696,1736191848373,-500.0,0.0002,3]
[347907697,1736191848382,-1320.19,0.0002,3]
[347907698,1736191848392,-500.0,0.0002,3]
[347907699,1736191848401,-500.0,0.0002,3]
[347907700,1736191848411,-1036.51,0.0002,3]
[347907701,1736191848424,-500.0,0.0002,3]
[347907702,1736191848435,-500.0,0.0002,3]
[347907703,1736191848445,-500.0,0.0002,3]
[347907704,1736191848455,-500.0,0.0002,3]
[347907705,1736191848465,-476.35917226,0.0002,2]
[347907706,1736191848477,-3529.09551689,0.0002,2]
[347907707,1736191848486,-500.0,0.0002,3]
[347907708,1736191848495,-6609.89852724,0.0002,2]
[347907709,1736191848507,-819.32607797,0.0002,2]
[347907710,1736191848588,-500.0,0.00019452,3]
[347907711,1736191848601,-1477.6301833,0.0002,2]
[347907712,1736191848809,-581.0321523,0.00018986,2]
[347907713,1736191848820,-11674.01787907,0.0002,2]
[347907714,1736191848834,-3714.4041264,0.0002,2]
[347907715,1736191848849,-4798.33216398,0.0002,2]
[347907716,1736191848861,-2838.06247245,0.0002,2]
[347907721,1736192132709,157.770119,0.00013973,2]
[347907727,1736192966308,-229.18840337,0.00017219,2]
[347907767,1736193032738,-193.8142804,0.00016903,2]
[347907769,1736193032748,-502.95723606,0.00017046,2]
[347907771,1736193032758,-27.53983063,0.00017219,2]
[347907773,1736193032767,-1226.3395407,0.00017857,2]
[347907775,1736193032776,-348.85639621,0.0001786,2]
[347907777,1736193032785,-300.0,0.00017917,2]
[347907779,1736193032794,-6478.0,0.00017918,2]
[347907781,1736193032804,-6413.5667927,0.00017919,2]
[347907792,1736193032927,-18486.4332073,0.00017919,2]
[347907794,1736193032936,-647.0444198,0.0001796,2]
[347907796,1736193032946,-294.5252103,0.00018053,2]
[347907798,1736193032955,-348.85639618,0.00018593,2]
[347907800,1736193032964,-153.61,0.000186,2]
[347907802,1736193032973,-5390.6948052,0.00018644,2]
[347907804,1736193032982,-2193.71200535,0.000189,2]
[347907806,1736193032991,-152.0,0.00018953,2]
[347907808,1736193033000,-2193.7120052,0.00019072,2]
[347907810,1736193033010,-280.74087118,0.00019078,2]
[347907812,1736193033019,-193.6773841,0.00019166,2]
[347907814,1736193033028,-500.0,0.00019171,2]
[347907816,1736193033038,-500.0,0.00019171,2]
[347907818,1736193033047,-500.0,0.00019171,2]
[347907820,1736193033057,-500.0,0.00019171,2]
[347907822,1736193033066,-500.0,0.00019171,2]
[347907824,1736193033076,-500.0,0.00019171,2]
[347907826,1736193033086,-500.0,0.00019171,2]
[347907829,1736193033095,-456.51046175,0.00019171,2]
[347907831,1736193033104,-500.0,0.00019171,2]
[347907832,1736193033114,-189.13752448,0.00019171,2]
[347907835,1736193033123,-500.0,0.00019171,2]
[347907836,1736193033133,-500.0,0.00019171,2]
[347907838,1736193033143,-500.0,0.00019171,2]
[347907840,1736193033152,-500.0,0.00019171,2]
[347907842,1736193033162,-500.0,0.00019171,2]
[347907844,1736193033171,-458.19509441,0.00019171,2]
[347907846,1736193033181,-500.0,0.00019171,2]
[347907848,1736193033190,-500.0,0.00019171,2]
[347907850,1736193033199,-277.42058891,0.00019171,2]
[347907852,1736193033208,-500.0,0.00019171,2]
[347907854,1736193033218,-500.0,0.00019171,2]
[347907856,1736193033228,-500.0,0.00019171,2]
[347907858,1736193033238,-500.0,0.00019171,2]
[347907860,1736193033246,-370.08217009,0.00019171,2]
[347907862,1736193033256,-500.0,0.00019171,2]
[347907863,1736193033265,-500.0,0.00019171,2]
[347907864,1736193033274,-500.0,0.00019171,2]
[347907865,1736193033283,-500.0,0.00019171,2]
[347907866,1736193033292,-500.0,0.00019171,2]
[347907867,1736193033305,-621.74406665,0.00019171,2]
[347907868,1736193033314,-500.0,0.00019171,2]
[347907869,1736193033324,-500.0,0.00019171,2]
[347907870,1736193033333,-500.0,0.00019171,2]
[347907871,1736193033343,-500.0,0.00019171,2]
[347907872,1736193033352,-500.0,0.00019171,2]
[347907873,1736193033363,-500.0,0.00019171,2]
[347907874,1736193033373,-500.0,0.00019171,2]
[347907875,1736193033383,-500.0,0.00019171,2]
[347907876,1736193033393,-500.0,0.00019171,2]
[347907877,1736193033402,-500.0,0.00019171,2]
[347907878,1736193033412,-500.0,0.00019171,2]
[347907879,1736193033422,-500.0,0.00019171,2]
[347907880,1736193033431,-489.40926163,0.00019171,2]
[347907881,1736193033441,-500.0,0.00019171,2]
[347907882,1736193033451,-500.0,0.00019171,2]
[347907883,1736193033465,-500.0,0.00019171,2]
[347907884,1736193033475,-500.0,0.00019171,2]
[347907885,1736193033485,-500.0,0.00019171,2]
[347907886,1736193033495,-500.0,0.00019171,2]
[347907887,1736193033506,-500.0,0.00019171,2]
[347907888,1736193033516,-500.0,0.00019171,2]
[347907889,1736193033526,-500.0,0.00019171,2]
[347907890,1736193033537,-500.0,0.00019171,2]
[347907891,1736193033547,-500.0,0.00019171,2]
[347907892,1736193033557,-500.0,0.00019173,2]
[347907893,1736193033567,-500.0,0.00019173,2]
[347907894,1736193033577,-502.54347369,0.00019173,2]
[347907895,1736193033586,-186.99101423,0.00019173,2]
[347907896,1736193033595,-500.0,0.00019173,2]
[347907897,1736193033605,-500.0,0.00019173,2]
[347907898,1736193033614,-320.02807398,0.00019173,2]
[347907899,1736193033624,-500.0,0.00019173,2]
[347907900,1736193033633,-155.264,0.00019173,2]
[347907901,1736193033643,-399.70334146,0.00019177,2]
[347907902,1736193033653,-500.0,0.00019178,2]
[347907903,1736193033662,-4456.45,0.00019178,2]
[347907904,1736193033672,-500.0,0.00019178,2]
[347907905,1736193033681,-500.0,0.00019178,2]
[347907906,1736193033691,-180.70649437,0.00019178,2]
[347907907,1736193033700,-507.98881454,0.00019178,2]
[347907908,1736193033710,-229.4,0.00019178,2]
[347907909,1736193033719,-500.0,0.00019178,2]
[347907910,1736193033728,-500.0,0.00019178,2]
[347907911,1736193033738,-500.0,0.00019178,2]
[347907912,1736193033748,-500.0,0.00019178,2]
[347907913,1736193033757,-500.0,0.00019178,2]
[347907914,1736193033767,-500.0,0.00019178,2]
[347907915,1736193033776,-500.0,0.00019178,2]
[347907916,1736193033786,-500.0,0.00019178,2]
[347907917,1736193033795,-500.0,0.00019178,2]
[347907918,1736193033805,-500.0,0.00019178,2]
[347907919,1736193033815,-500.0,0.00019178,2]
[347907920,1736193033824,-817.16,0.00019178,2]
[347907921,1736193033833,-500.0,0.00019178,2]
[347907922,1736193033843,-500.0,0.00019178,2]
[347907923,1736193033852,-500.0,0.00019178,2]
[347907924,1736193033861,-500.0,0.00019178,2]
[347907925,1736193033871,-500.0,0.00019178,2]
[347907926,1736193033881,-500.0,0.00019178,2]
[347907927,1736193033891,-500.0,0.00019178,2]
[347907928,1736193033901,-664.68,0.00019178,2]
[347907929,1736193033912,-500.0,0.00019178,2]
[347907930,1736193033921,-500.0,0.00019178,2]
[347907931,1736193033931,-630.51,0.00019178,2]
[347907932,1736193033940,-500.0,0.00019178,2]
[347907933,1736193033950,-500.0,0.00019178,2]
[347907934,1736193033959,-500.0,0.00019178,2]
[347907935,1736193033969,-500.0,0.00019178,2]
[347907936,1736193033979,-500.0,0.00019178,2]
[347907937,1736193033989,-585.6,0.00019178,2]
[347907938,1736193033998,-500.0,0.00019178,2]
[347907939,1736193034009,-500.0,0.00019178,2]
[347907940,1736193034019,-500.0,0.00019178,2]
[347907941,1736193034030,-500.0,0.00019178,2]
[347907942,1736193034040,-500.0,0.00019178,2]
[347907943,1736193034049,-500.0,0.00019178,2]
[347907944,1736193034059,-500.0,0.00019178,2]
[347907945,1736193034069,-500.0,0.00019178,2]
[347907946,1736193034078,-500.0,0.00019178,2]
[347907947,1736193034087,-500.0,0.00019178,2]
[347907948,1736193034097,-500.0,0.00019178,2]
[347907949,1736193034106,-500.0,0.00019178,2]
[347907950,1736193034116,-500.0,0.00019178,2]
[347907951,1736193034125,-500.0,0.00019178,2]
[347907952,1736193034135,-500.0,0.00019178,2]
[347907953,1736193034144,-500.0,0.00019178,2]
[347907954,1736193034153,-500.0,0.00019178,2]
[347907955,1736193034163,-500.0,0.00019178,2]
[347907956,1736193034172,-597.93,0.00019178,2]
[347907957,1736193034182,-500.0,0.00019178,2]
[347907958,1736193034191,-500.0,0.00019178,2]
[347907959,1736193034201,-500.0,0.00019178,2]
[347907960,1736193034211,-500.0,0.00019178,2]
[347907961,1736193034220,-399.56436692,0.00019178,2]
[347907962,1736193034229,-500.0,0.00019178,2]
[347907963,1736193034239,-650.31,0.00019178,2]
[347907964,1736193034248,-500.0,0.00019178,2]
[347907965,1736193034258,-500.0,0.00019178,2]
[347907966,1736193034268,-4719.58,0.00019178,2]
[347907967,1736193034277,-1709.44,0.00019178,2]
[347907968,1736193034287,-500.0,0.00019178,2]
[347907969,1736193034296,-500.0,0.00019178,2]
[347907970,1736193034306,-500.0,0.00019178,2]
[347907971,1736193034316,-500.0,0.00019178,2]
[347907972,1736193034325,-500.0,0.00019178,2]
[347907973,1736193034335,-500.0,0.00019178,2]
[347907974,1736193034344,-1172.39,0.00019178,2]
[347907975,1736193034354,-500.0,0.00019178,2]
[347907976,1736193034363,-500.0,0.00019178,2]
[347907977,1736193034373,-817.56,0.00019178,2]
[347907978,1736193034383,-500.0,0.00019178,2]
[347907979,1736193034392,-500.0,0.00019178,2]
[347907980,1736193034402,-500.0,0.00019178,2]
[347907981,1736193034411,-1100.16,0.00019178,2]
[347907982,1736193034420,-863.76,0.00019178,2]
[347907983,1736193034429,-658.21,0.00019178,2]
[347907984,1736193034439,-500.0,0.00019178,2]
[347907985,1736193034448,-866.51,0.00019178,2]
[347907986,1736193034461,-500.0,0.00019178,2]
[347907987,1736193034470,-2553.25,0.00019178,2]
[347907988,1736193034479,-500.0,0.00019178,2]
[347907989,1736193034489,-534.44,0.00019178,2]
[347907990,1736193034499,-2563.1,0.00019178,2]
[347907991,1736193034508,-500.0,0.00019178,2]
[347907992,1736193034518,-570.69,0.00019178,2]
[347907993,1736193034527,-500.0,0.00019178,2]
[347907994,1736193034537,-500.0,0.00019178,2]
[347907995,1736193034546,-329.31,0.00019178,2]
[347907996,1736193034556,-825.32,0.00019178,2]
[347907997,1736193034566,-500.0,0.00019178,2]
[347907998,1736193034575,-500.0,0.00019178,2]
[347907999,1736193034584,-402.33746573,0.00019178,2]
[347908000,1736193034594,-500.0,0.00019178,2]
[347908001,1736193034603,-500.0,0.00019178,2]
[347908002,1736193034612,-500.0,0.00019178,2]
[347908003,1736193034622,-500.0,0.00019178,2]
[347908004,1736193034632,-2035.2,0.00019178,2]
[347908005,1736193034641,-1553.94,0.00019178,2]
[347908006,1736193034651,-500.0,0.00019178,2]
[347908007,1736193034660,-500.0,0.00019178,2]
[347908008,1736193034670,-885.33,0.00019178,2]
[347908009,1736193034679,-826.0,0.00019178,2]
[347908010,1736193034688,-500.0,0.00019178,2]
[347908011,1736193034697,-500.0,0.00019178,2]
[347908012,1736193034707,-500.0,0.00019178,2]
[347908013,1736193034716,-500.0,0.00019178,2]
[347908014,1736193034725,-500.0,0.00019178,2]
[347908015,1736193034735,-2056.55,0.00019178,2]
[347908016,1736193034744,-500.0,0.00019178,2]
[347908017,1736193034753,-677.99,0.00019178,2]
[347908018,1736193034763,-500.0,0.00019178,2]
[347908019,1736193034771,-500.0,0.00019178,2]
[347908020,1736193034781,-500.0,0.00019178,2]
[347908021,1736193034790,-500.0,0.00019178,2]
[347908022,1736193034799,-500.0,0.00019178,2]
[347908023,1736193034808,-500.0,0.00019178,2]
[347908024,1736193034817,-500.0,0.00019178,2]
[347908025,1736193034828,-500.0,0.00019178,2]
[347908026,1736193034837,-500.0,0.00019178,2]
[347908027,1736193034846,-500.0,0.00019178,2]
[347908028,1736193034855,-500.0,0.00019178,2]
[347908029,1736193034864,-4172.61592293,0.00019178,2]
[347908030,1736193034878,-14884.84407707,0.00019178,2]
[347908031,1736193034888,-178.50957707,0.00019178,2]
[347908032,1736193034899,-597.61,0.00019178,2]
[347908033,1736193034909,-2415.64,0.00019178,2]
[347908034,1736193034919,-500.0,0.00019178,2]
[347908035,1736193035071,-1538.9,0.00019178,2]
[347908036,1736193035081,-500.0,0.00019178,2]
[347908037,1736193035091,-500.0,0.00019178,2]
[347908038,1736193035100,-500.0,0.00019178,2]
[347908039,1736193035110,-573.51,0.00019178,2]
[347908040,1736193035119,-500.0,0.00019178,2]
[347908041,1736193035128,-165.886679,0.00019178,2]
[347908042,1736193035138,-2193.7120052,0.00019245,2]
[347908043,1736193035148,-348.85639618,0.00019326,2]
[347908044,1736193035158,-32651.72648478,0.00019373,2]
[347908045,1736193035167,-192.0,0.0001938,2]
[347908046,1736193035177,-2193.7120052,0.00019417,2]
[347908047,1736193035186,-500.0,0.00019451,2]
[347908048,1736193035196,-500.0,0.00019452,3]
[347908049,1736193035206,-4456.45,0.00019452,3]
[347908050,1736193035215,-500.0,0.00019452,3]
[347908051,1736193035224,-500.0,0.00019452,3]
[347908052,1736193035234,-500.0,0.00019452,3]
[347908053,1736193035243,-500.0,0.00019452,3]
[347908054,1736193035252,-204.103233,0.00019452,3]
[347908055,1736193035262,-500.0,0.00019452,3]
[347908056,1736193035271,-500.0,0.00019452,3]
[347908057,1736193035280,-500.0,0.00019452,3]
[347908058,1736193035290,-500.0,0.00019452,3]
[347908059,1736193035299,-500.0,0.00019452,3]
[347908060,1736193035309,-500.0,0.00019452,3]
[347908061,1736193035319,-500.0,0.00019452,3]
[347908062,1736193035328,-500.0,0.00019452,3]
[347908063,1736193035338,-817.16,0.00019452,3]
[347908064,1736193035347,-500.0,0.00019452,3]
[347908065,1736193035357,-500.0,0.00019452,3]
[347908066,1736193035367,-500.0,0.00019452,3]
[347908067,1736193035377,-500.0,0.00019452,3]
[347908068,1736193035387,-500.0,0.00019452,3]
[347908069,1736193035398,-500.0,0.00019452,3]
[347908070,1736193035408,-500.0,0.00019452,3]
[347908071,1736193035419,-664.68,0.00019452,3]
[347908072,1736193035428,-500.0,0.00019452,3]
[347908073,1736193035438,-500.0,0.00019452,3]
[347908074,1736193035447,-630.51,0.00019452,3]
[347908075,1736193035460,-500.0,0.00019452,3]
[347908076,1736193035469,-500.0,0.00019452,3]
[347908077,1736193035479,-500.0,0.00019452,3]
[347908078,1736193035489,-500.0,0.00019452,3]
[347908079,1736193035499,-500.0,0.00019452,3]
[347908080,1736193035509,-585.6,0.00019452,3]
[347908081,1736193035519,-500.0,0.00019452,3]
[347908082,1736193035529,-358.27970429,0.00019452,3]
[347908083,1736193035539,-500.0,0.00019452,3]
[347908084,1736193035550,-500.0,0.00019452,3]
[347908085,1736193035559,-500.0,0.00019452,3]
[347908086,1736193035569,-500.0,0.00019452,3]
[347908087,1736193035578,-500.0,0.00019452,3]
[347908088,1736193035587,-500.0,0.00019452,3]
[347908089,1736193035596,-449.48,0.00019452,3]
[347908090,1736193035606,-500.0,0.00019452,3]
[347908091,1736193035616,-500.0,0.00019452,3]
[347908092,1736193035626,-500.0,0.00019452,3]
[347908093,1736193035636,-500.0,0.00019452,3]
[347908094,1736193035646,-500.0,0.00019452,3]
[347908095,1736193035656,-500.0,0.00019452,3]
[347908096,1736193035665,-500.0,0.00019452,3]
[347908097,1736193035675,-597.93,0.00019452,3]
[347908098,1736193035684,-500.0,0.00019452,3]
[347908099,1736193035694,-500.0,0.00019452,3]
[347908100,1736193035703,-500.0,0.00019452,3]
[347908101,1736193035712,-500.0,0.00019452,3]
[347908102,1736193035721,-500.0,0.00019452,3]
[347908103,1736193035730,-650.31,0.00019452,3]
[347908104,1736193035739,-500.0,0.00019452,3]
[347908105,1736193035749,-500.0,0.00019452,3]
[347908106,1736193035758,-4719.58,0.00019452,3]
[347908107,1736193035767,-1709.44,0.00019452,3]
[347908108,1736193035776,-500.0,0.00019452,3]
[347908109,1736193035785,-500.0,0.00019452,3]
[347908110,1736193035795,-500.0,0.00019452,3]
[347908111,1736193035804,-500.0,0.00019452,3]
[347908112,1736193035813,-500.0,0.00019452,3]
[347908113,1736193035822,-1172.39,0.00019452,3]
[347908114,1736193035832,-500.0,0.00019452,3]
[347908115,1736193035841,-500.0,0.00019452,3]
[347908116,1736193035851,-817.56,0.00019452,3]
[347908117,1736193035860,-500.0,0.00019452,3]
[347908118,1736193035869,-500.0,0.00019452,3]
[347908119,1736193035880,-500.0,0.00019452,3]
[347908120,1736193035890,-1100.16,0.00019452,3]
[347908121,1736193035901,-863.76,0.00019452,3]
[347908122,1736193035911,-658.21,0.00019452,3]
[347908123,1736193035920,-500.0,0.00019452,3]
[347908124,1736193035929,-866.51,0.00019452,3]
[347908125,1736193035939,-536.04557566,0.00019452,3]
[347908126,1736193035948,-2553.25,0.00019452,3]
[347908127,1736193035958,-500.0,0.00019452,3]
[347908128,1736193035967,-534.44,0.00019452,3]
[347908129,1736193035976,-2563.1,0.00019452,3]
[347908130,1736193035986,-500.0,0.00019452,3]
[347908131,1736193035995,-570.69,0.00019452,3]
[347908132,1736193036004,-500.0,0.00019452,3]
[347908133,1736193036014,-500.0,0.00019452,3]
[347908134,1736193036023,-825.32,0.00019452,3]
[347908135,1736193036033,-500.0,0.00019452,3]
[347908136,1736193036042,-500.0,0.00019452,3]
[347908137,1736193036051,-500.0,0.00019452,3]
[347908138,1736193036061,-273.67965802,0.00019452,3]
[347908139,1736193036070,-500.0,0.00019452,3]
[347908140,1736193036079,-500.0,0.00019452,3]
[347908141,1736193036089,-2035.2,0.00019452,3]
[347908142,1736193036099,-1553.94,0.00019452,3]
[347908143,1736193036108,-500.0,0.00019452,3]
[347908144,1736193036117,-500.0,0.00019452,3]
[347908145,1736193036127,-885.33,0.00019452,3]
[347908146,1736193036136,-505.99867267,0.00019452,3]
[347908147,1736193036146,-826.0,0.00019452,3]
[347908148,1736193036156,-500.0,0.00019452,3]
[347908149,1736193036165,-500.0,0.00019452,3]
[347908150,1736193036175,-500.0,0.00019452,3]
[347908151,1736193036184,-500.0,0.00019452,3]
[347908152,1736193036193,-2056.55,0.00019452,3]
[347908153,1736193036203,-500.0,0.00019452,3]
[347908154,1736193036212,-677.99,0.00019452,3]
[347908155,1736193036221,-500.0,0.00019452,3]
[347908156,1736193036231,-500.0,0.00019452,3]
[347908157,1736193036240,-500.0,0.00019452,3]
[347908158,1736193036250,-500.0,0.00019452,3]
[347908159,1736193036259,-500.0,0.00019452,3]
[347908160,1736193036269,-500.0,0.00019452,3]
[347908161,1736193036278,-500.0,0.00019452,3]
[347908162,1736193036288,-500.0,0.00019452,3]
[347908163,1736193036298,-500.0,0.00019452,3]
[347908164,1736193036308,-500.0,0.00019452,3]
[347908165,1736193036318,-19057.46,0.00019452,3]
[347908166,1736193036327,-597.61,0.00019452,3]
[347908167,1736193036336,-2415.64,0.00019452,3]
[347908168,1736193036346,-500.0,0.00019452,3]
[347908169,1736193036355,-1538.9,0.00019452,3]
[347908170,1736193036364,-500.0,0.00019452,3]
[347908171,1736193036374,-500.0,0.00019452,3]
[347908172,1736193036383,-500.0,0.00019452,3]
[347908173,1736193036393,-573.51,0.00019452,3]
[347908174,1736193036403,-500.0,0.00019452,3]
[347908175,1736193036413,-420.0,0.00019551,2]
[347908176,1736193036422,-500.0,0.00019588,2]
[347908177,1736193036431,-2193.7120052,0.0001959,2]
[347908178,1736193036441,-1002.6387302,0.00019721,2]
[347908179,1736193036451,-500.0,0.00019725,2]
[347908180,1736193036466,-500.0,0.00019726,3]
[347908181,1736193036475,-4456.45,0.00019726,3]
[347908182,1736193036486,-500.0,0.00019726,3]
[347908183,1736193036495,-342.16437428,0.00019726,3]
[347908184,1736193036507,-500.0,0.00019726,5]
[347908185,1736193036516,-500.0,0.00019726,3]
[347908186,1736193036525,-500.0,0.00019726,3]
[347908187,1736193036535,-500.0,0.00019726,3]
[347908188,1736193036545,-500.0,0.00019726,3]
[347908189,1736193036554,-500.0,0.00019726,3]
[347908190,1736193036563,-500.0,0.00019726,3]
[347908191,1736193036572,-500.0,0.00019726,3]
[347908192,1736193036581,-500.0,0.00019726,3]
[347908193,1736193036591,-500.0,0.00019726,3]
[347908194,1736193036601,-817.16,0.00019726,3]
[347908195,1736193036610,-500.0,0.00019726,3]
[347908196,1736193036621,-500.0,0.00019726,3]
[347908197,1736193036631,-500.0,0.00019726,3]
[347908198,1736193036640,-500.0,0.00019726,3]
[347908199,1736193036650,-500.0,0.00019726,3]
[347908200,1736193036659,-500.0,0.00019726,3]
[347908201,1736193036669,-500.0,0.00019726,3]
[347908202,1736193036678,-664.68,0.00019726,3]
[347908203,1736193036688,-500.0,0.00019726,3]
[347908204,1736193036697,-500.0,0.00019726,3]
[347908205,1736193036706,-630.51,0.00019726,3]
[347908206,1736193036716,-500.0,0.00019726,3]
[347908207,1736193036726,-500.0,0.00019726,3]
[347908208,1736193036735,-500.0,0.00019726,3]
[347908209,1736193036744,-500.0,0.00019726,3]
[347908210,1736193036753,-500.0,0.00019726,3]
[347908211,1736193036763,-585.6,0.00019726,3]
[347908212,1736193036772,-500.0,0.00019726,3]
[347908213,1736193036782,-500.0,0.00019726,3]
[347908214,1736193036791,-500.0,0.00019726,3]
[347908215,1736193036800,-500.0,0.00019726,3]
[347908216,1736193036809,-500.0,0.00019726,3]
[347908217,1736193036818,-500.0,0.00019726,3]
[347908218,1736193036827,-500.0,0.00019726,3]
[347908219,1736193036836,-500.0,0.00019726,3]
[347908220,1736193036845,-500.0,0.00019726,3]
[347908221,1736193036854,-500.0,0.00019726,3]
[347908222,1736193036864,-500.0,0.00019726,3]
[347908223,1736193036873,-500.0,0.00019726,3]
[347908224,1736193036883,-500.0,0.00019726,3]
[347908225,1736193036892,-597.93,0.00019726,3]
[347908226,1736193036902,-500.0,0.00019726,3]
[347908227,1736193036911,-500.0,0.00019726,3]
[347908228,1736193036920,-500.0,0.00019726,3]
[347908229,1736193036929,-500.0,0.00019726,3]
[347908230,1736193036939,-500.0,0.00019726,3]
[347908231,1736193036948,-650.31,0.00019726,3]
[347908232,1736193036957,-500.0,0.00019726,3]
[347908233,1736193036967,-500.0,0.00019726,3]
[347908234,1736193036976,-4719.58,0.00019726,3]
[347908235,1736193036985,-1709.44,0.00019726,3]
[347908236,1736193036995,-500.0,0.00019726,3]
[347908237,1736193037004,-500.0,0.00019726,3]
[347908238,1736193037013,-500.0,0.00019726,3]
[347908239,1736193037023,-500.0,0.00019726,3]
[347908240,1736193037031,-500.0,0.00019726,3]
[347908241,1736193037041,-1172.39,0.00019726,3]
[347908242,1736193037050,-500.0,0.00019726,3]
[347908243,1736193037060,-500.0,0.00019726,3]
[347908244,1736193037069,-817.56,0.00019726,3]
[347908245,1736193037079,-500.0,0.00019726,3]
[347908246,1736193037088,-500.0,0.00019726,3]
[347908247,1736193037097,-500.0,0.00019726,3]
[347908248,1736193037106,-1100.16,0.00019726,3]
[347908249,1736193037115,-863.76,0.00019726,3]
[347908250,1736193037125,-386.90345412,0.00019726,3]
[347908255,1736193038165,158.26508,0.00013973,2]
[347908303,1736193038675,-500.0,0.00019171,2]
[347908305,1736193038685,-500.0,0.00019171,2]
[347908306,1736193038694,-500.0,0.00019171,2]
[347908308,1736193038703,-268.0,0.00019171,2]
[347908491,1736193046659,-232.0,0.00019171,2]
[347908492,1736193046668,-500.0,0.00019171,2]
[347908493,1736193046678,-500.0,0.00019171,2]
[347908494,1736193046687,-500.0,0.00019171,2]
[347908495,1736193046697,-500.0,0.00019171,2]
[347908496,1736193046706,-500.0,0.00019171,2]
[347908497,1736193046716,-500.0,0.00019171,2]
[347908498,1736193046725,-500.0,0.00019171,2]